lending/lending_fUSD_20250210
["ID","MTS","AMOUNT","RATE_DAILY","PERIOD"]
[352572456,1739175038394,-783.0,9.761e-05,2]
[352572459,1739175038404,-907.0,9.761e-05,2]
[352572462,1739175038414,-2954.0,9.761e-05,2]
[352572465,1739175038423,-4024.0,9.761e-05,2]
[352572468,1739175038432,-150.0,9.762e-05,2]
[352572471,1739175038444,-150.0,9.764e-05,2]
[352572474,1739175038454,-150.0,9.773e-05,2]
[352572476,1739175038463,-150.0,9.78e-05,2]
[352572478,1739175038474,-15954.06451851,9.785e-05,2]
[352572480,1739175038484,-150.0,9.797e-05,2]
[352572482,1739175038494,-3708.40573329,9.797e-05,2]
[352572484,1739175038503,-1128.0773914,9.8e-05,2]
[352572486,1739175038513,-150.0,9.804e-05,2]
[352572488,1739175038522,-154.05471756,9.808e-05,2]
[352572490,1739175038532,-150.0,9.813e-05,2]
[352572492,1739175038545,-150.0,9.815e-05,2]
[352572494,1739175038554,-150.0,9.816e-05,2]
[352572496,1739175038564,-150.0,9.821e-05,2]
[352572498,1739175038575,-150.0,9.824e-05,2]
[352572500,1739175038589,-150.0,9.825e-05,2]
[352572502,1739175038601,-150.0,9.826e-05,2]
[352572504,1739175038610,-10354.19917861,9.838e-05,2]
[352572506,1739175038620,-150.0,9.843e-05,2]
[352572508,1739175038629,-150.0,9.844e-05,2]
[352572510,1739175038638,-150.0,9.852e-05,2]
[352572512,1739175038648,-150.0,9.855e-05,2]
[352572514,1739175038657,-150.0,9.859e-05,2]
[352572516,1739175038666,-150.0,9.886e-05,2]
[352572518,1739175038676,-2500.0,9.899e-05,2]
[352572520,1739175038686,-2500.0,9.9e-05,2]
[352572522,1739175038696,-20053.96255774,9.9e-05,2]
[352572524,1739175038705,-150.0,9.901e-05,2]
[352572526,1739175038714,-150.0,9.917e-05,2]
[352572528,1739175038723,-150.0,9.918e-05,2]
[352572530,1739175038733,-150.0,9.918e-05,2]
[352572532,1739175038742,-150.0,9.925e-05,2]
[352572534,1739175038751,-150.0,9.928e-05,2]
[352572536,1739175038761,-150.0,9.93e-05,2]
[352572538,1739175038774,-150.0,9.936e-05,2]
[352572540,1739175038785,-150.0,9.943e-05,2]
[352572542,1739175038795,-150.0,9.951e-05,2]
[352572544,1739175038812,-150.0,9.955e-05,2]
[352572546,1739175038823,-150.0,9.96e-05,2]
[352572548,1739175038833,-150.0,9.965e-05,2]
[352572550,1739175038843,-150.0,9.965e-05,2]
[352572552,1739175038853,-150.0,9.966e-05,2]
[352572554,1739175038862,-150.0,9.967e-05,2]
[352572556,1739175038872,-150.0,9.969e-05,2]
[352572558,1739175038883,-500.0,9.973e-05,2]
[352572560,1739175038893,-150.0,9.977e-05,2]
[352572562,1739175038903,-1216.239,9.979e-05,2]
[352572564,1739175038912,-150.0,9.983e-05,2]
[352572566,1739175038921,-390.2161177,9.99e-05,2]
[352572568,1739175038930,-773.7497831,9.99e-05,2]
[352572570,1739175038940,-255.6386534,9.99e-05,2]
[352572572,1739175038950,-427.6892528,9.993e-05,2]
[352572574,1739175038959,-280.1880797,9.993e-05,2]
[352572576,1739175038968,-150.0,9.994e-05,2]
[352572578,1739175038978,-150.0,9.995e-05,2]
[352572580,1739175038988,-150.0,9.997e-05,2]
[352572582,1739175038998,-500.0,9.999e-05,2]
[352572584,1739175039009,-153.664863,9.999e-05,2]
[352572586,1739175039020,-153.664862,9.999e-05,2]
[352572588,1739175039029,-500.0,9.999e-05,2]
[352572590,1739175039042,-500.0,9.999e-05,2]
[352572592,1739175039052,-300.0,9.999e-05,2]
[352572594,1739175039061,-500.0,9.999e-05,2]
[352572596,1739175039070,-503.66007189,9.999e-05,2]
[352572598,1739175039080,-500.0,9.999e-05,2]
[352572599,1739175039090,-500.0,9.999e-05,2]
[352572602,1739175039099,-703.99,9.999e-05,2]
[352572604,1739175039108,-500.0,9.999e-05,2]
[352572605,1739175039117,-500.0,9.999e-05,2]
[352572608,1739175039127,-628.58,9.999e-05,2]
[352572610,1739175039136,-500.0,9.999e-05,2]
[352572611,1739175039146,-500.0,9.999e-05,2]
[352572613,1739175039155,-500.0,9.999e-05,2]
[352572615,1739175039165,-500.0,9.999e-05,2]
[352572617,1739175039174,-323.97,9.999e-05,2]
[352572619,1739175039184,-500.0,9.999e-05,2]
[352572621,1739175039194,-442.0356243,9.999e-05,2]
[352572623,1739175039203,-500.0,9.999e-05,2]
[352572625,1739175039213,-500.0,9.999e-05,2]
[352572627,1739175039222,-500.0,9.999e-05,2]
[352572629,1739175039231,-500.0,9.999e-05,2]
[352572631,1739175039241,-500.0,9.999e-05,2]
[352572633,1739175039251,-500.0,9.999e-05,2]
[352572635,1739175039260,-622.49966736,9.999e-05,2]
[352572637,1739175039269,-500.0,9.999e-05,2]
[352572639,1739175039279,-500.0,9.999e-05,2]
[352572641,1739175039290,-500.0,9.999e-05,2]
[352572643,1739175039299,-500.0,9.999e-05,2]
[352572645,1739175039308,-400.40345431,9.999e-05,2]
[352572647,1739175039317,-500.0,9.999e-05,2]
[352572649,1739175039326,-624.86,9.999e-05,2]
[352572651,1739175039335,-500.0,9.999e-05,2]
[352572653,1739175039345,-500.0,9.999e-05,2]
[352572655,1739175039355,-500.0,9.999e-05,2]
[352572657,1739175039364,-500.0,9.999e-05,2]
[352572659,1739175039373,-500.0,9.999e-05,2]
[352572661,1739175039383,-500.0,9.999e-05,2]
[352572663,1739175039392,-500.0,9.999e-05,2]
[352572665,1739175039401,-500.0,9.999e-05,2]
[352572667,1739175039411,-500.0,9.999e-05,2]
[352572669,1739175039421,-500.0,9.999e-05,2]
[352572671,1739175039430,-500.0,9.999e-05,2]
[352572673,1739175039439,-500.0,9.999e-05,2]
[352572675,1739175039448,-500.0,9.999e-05,2]
[352572677,1739175039458,-500.0,9.999e-05,2]
[352572679,1739175039467,-660.99,9.999e-05,2]
[352572681,1739175039476,-500.0,9.999e-05,2]
[352572683,1739175039486,-500.0,9.999e-05,2]
[352572686,1739175039495,-500.0,9.999e-05,2]
[352572688,1739175039505,-500.0,9.999e-05,2]
[352572690,1739175039514,-710.76,9.999e-05,2]
[352572692,1739175039523,-500.0,9.999e-05,2]
[352572694,1739175039532,-500.0,9.999e-05,2]
[352572696,1739175039544,-500.0,9.999e-05,2]
[352572698,1739175039553,-500.0,9.999e-05,2]
[352572700,1739175039562,-174.79605977,9.999e-05,2]
[352572702,1739175039572,-724.76,9.999e-05,2]
[352572704,1739175039581,-500.0,9.999e-05,2]
[352572706,1739175039591,-500.0,9.999e-05,2]
[352572708,1739175039600,-500.0,9.999e-05,2]
[352572710,1739175039610,-500.0,9.999e-05,2]
[352572712,1739175039619,-500.0,9.999e-05,2]
[352572714,1739175039628,-500.0,9.999e-05,2]
[352572717,1739175039638,-500.0,9.999e-05,2]
[352572719,1739175039647,-500.0,9.999e-05,2]
[352572722,1739175039656,-500.0,9.999e-05,2]
[352572725,1739175039665,-500.0,9.999e-05,2]
[352572727,1739175039674,-500.0,9.999e-05,2]
[352572729,1739175039683,-500.0,9.999e-05,2]
[352572731,1739175039693,-396.94598,9.999e-05,2]
[352572733,1739175039703,-500.0,9.999e-05,2]
[352572735,1739175039711,-650.0,0.0001,2]
[352572737,1739175039721,-23328.63985803,0.0001,2]
[352572739,1739175039730,-4800.42509534,0.0001,2]
[352572741,1739175039739,-5003.0,0.0001,2]
[352572743,1739175039748,-45457.0,0.0001,2]
[352572745,1739175039757,-500.0,0.0001,2]
[352572747,1739175039766,-302.43330445,0.0001,2]
[352572749,1739175039776,-890343.40429151,0.0001,2]
[352572751,1739175039787,-282788.92508472,0.0001,2]
[352572753,1739175039797,-493.64844566,0.0001,2]
[352572755,1739175039808,-200.83621461,0.0001,2]
[352572757,1739175039818,-2000.0,0.0001,2]
[352572759,1739175039827,-200.0,0.0001,2]
[352572761,1739175039836,-172.55947856,0.0001,2]
[352572763,1739175039846,-150.0,0.0001,2]
[352572765,1739175039855,-151.0,0.0001,2]
[352572767,1739175039864,-151.0,0.0001,2]
[352572769,1739175039875,-500.0,0.0001,2]
[352572771,1739175039885,-500.0,0.0001,2]
[352572773,1739175039895,-500.0,0.0001,2]
[352572775,1739175039905,-500.0,0.0001,2]
[352572777,1739175039914,-500.0,0.0001,2]
[352572779,1739175039925,-500.0,0.0001,2]
[352572781,1739175039935,-500.0,0.0001,2]
[352572783,1739175039945,-500.0,0.0001,2]
[352572785,1739175039955,-500.0,0.0001,2]
[352572787,1739175039965,-500.0,0.0001,2]
[352572789,1739175039975,-500.0,0.0001,2]
[352572791,1739175039985,-500.0,0.0001,2]
[352572793,1739175039995,-500.0,0.0001,2]
[352572795,1739175040005,-500.0,0.0001,2]
[352572797,1739175040016,-500.0,0.0001,2]
[352572799,1739175040025,-500.0,0.0001,2]
[352572801,1739175040037,-500.0,0.0001,2]
[352572803,1739175040047,-500.0,0.0001,2]
[352572805,1739175040057,-500.0,0.0001,2]
[352572807,1739175040067,-500.0,0.0001,2]
[352572809,1739175040076,-500.0,0.0001,2]
[352572811,1739175040086,-500.0,0.0001,2]
[352572813,1739175040095,-500.0,0.0001,2]
[352572815,1739175040105,-367.0,0.0001,2]
[352572817,1739175040114,-2754.2336,0.0001,2]
[352572819,1739175040124,-2754.2336,0.0001,2]
[352572821,1739175040133,-747.0,0.0001,2]
[352572823,1739175040143,-762.7787,0.0001,2]
[352572825,1739175040153,-762.7787,0.0001,2]
[352572828,1739175040164,-13714621.45,0.0001,2]
[352572830,1739175040174,-231.0,0.0001,2]
[352572832,1739175040185,-1422.0977,0.0001,2]
[352572834,1739175040196,-151.0,0.0001,2]
[352572836,1739175040207,-1422.0977,0.0001,2]
[352572838,1739175040216,-9681.50505466,0.0001,2]
[352572840,1739175040226,-4000.0,0.0001,2]
[352572842,1739175040235,-392.19804901,0.0001,2]
[352572844,1739175040244,-319.03225197,0.0001,2]
[352572846,1739175040253,-319.03225197,0.0001,2]
[352572848,1739175040262,-319.03225197,0.0001,2]
[352572850,1739175040271,-151.0,0.0001,2]
[352572852,1739175040280,-503.21361119,0.0001,2]
[352572854,1739175040291,-1903.65435841,0.0001,2]
[352572856,1739175040300,-3917.6160053,0.0001,2]
[352572858,1739175040310,-418.37132802,0.0001,2]
[352572860,1739175040319,-500.09,0.0001,2]
[352572862,1739175040329,-1000.0,0.00010007,2]
[352572863,1739175040338,-211.24,0.00010025,2]
[352572865,1739175040347,-249.12567261,0.000101,2]
[352572867,1739175040356,-200.0,0.000101,2]
[352572869,1739175040365,-4000.0,0.0001012,2]
[352572871,1739175040375,-198.23870523,0.00010136,2]
[352572873,1739175040384,-269.34340681,0.00010136,2]
[352572875,1739175040393,-271.6,0.00010136,2]
[352572877,1739175040402,-500.0,0.00010136,2]
[352572879,1739175040412,-500.0,0.00010136,2]
[352572881,1739175040420,-703.99,0.00010136,2]
[352572883,1739175040429,-500.0,0.00010136,2]
[352572885,1739175040439,-500.0,0.00010136,2]
[352572887,1739175040448,-500.0,0.00010136,2]
[352572889,1739175040457,-500.0,0.00010136,2]
[352572891,1739175040467,-500.0,0.00010136,2]
[352572893,1739175040476,-500.0,0.00010136,2]
[352572895,1739175040485,-500.0,0.00010136,2]
[352572897,1739175040495,-500.0,0.00010136,2]
[352572899,1739175040504,-500.0,0.00010136,2]
[352572901,1739175040513,-500.0,0.00010136,2]
[352572903,1739175040522,-500.0,0.00010136,2]
[352572905,1739175040532,-500.0,0.00010136,2]
[352572907,1739175040547,-500.0,0.00010136,2]
[352572909,1739175040556,-500.0,0.00010136,2]
[352572911,1739175040565,-500.0,0.00010136,2]
[352572913,1739175040575,-150.07401917,0.00010136,2]
[352572915,1739175040585,-500.0,0.00010136,2]
[352572917,1739175040595,-150.0,0.00010136,2]
[352572919,1739175040605,-500.0,0.00010136,2]
[352572921,1739175040615,-150.0,0.00010136,2]
[352572923,1739175040624,-899.0,0.00010136,2]
[352572925,1739175040634,-660.99,0.00010136,2]
[352572927,1739175040643,-500.0,0.00010136,2]
[352572929,1739175040652,-173.09,0.00010136,2]
[352572931,1739175040661,-500.0,0.00010136,2]
[352572933,1739175040670,-500.0,0.00010136,2]
[352572935,1739175040681,-710.76,0.00010136,2]
[352572937,1739175040690,-431.32343403,0.00010136,2]
[352572939,1739175040700,-500.0,0.00010136,2]
[352572941,1739175040710,-500.0,0.00010136,2]
[352572943,1739175040719,-724.76,0.00010136,2]
[352572945,1739175040729,-500.0,0.00010136,2]
[352572947,1739175040738,-425.79,0.00010137,2]
[352572949,1739175040748,-317.03,0.00010137,2]
[352572951,1739175040757,-183.44,0.00010137,2]
[352572953,1739175040767,-500.0,0.00010163,2]
[352572955,1739175040776,-200.64009546,0.00010163,2]
[352572957,1739175040790,-899.0,0.00010163,2]
[352572959,1739175040800,-284.75351064,0.00010164,2]
[352572961,1739175040812,-500.0,0.00010173,2]
[352572963,1739175040823,-465.1623879,0.00010173,2]
[352572965,1739175040832,-304.7375059,0.00010173,2]
[352572967,1739175040842,-514700.03634835,0.0001018,2]
[352572969,1739175040851,-675.67500003,0.0001018,2]
[352572971,1739175040860,-179.315263,0.0001018,2]
[352572973,1739175040870,-179.315263,0.0001018,2]
[352572975,1739175040879,-151.0,0.0001018,2]
[352572977,1739175040889,-151.0,0.0001018,2]
[352572979,1739175040900,-500.0,0.00010191,2]
[352572981,1739175040910,-899.0,0.00010191,2]
[352572983,1739175040919,-200.0,0.00010201,2]
[352572985,1739175040929,-500.0,0.00010218,2]
[352572987,1739175040940,-899.0,0.00010218,2]
[352572989,1739175040949,-410.2177828,0.00010222,2]
[352572991,1739175040959,-200.0,0.00010228,2]
[352572993,1739175040970,-9835.35591443,0.00010229,2]
[352572996,1739175040984,-4809.19264129,0.0001023,2]
[352572997,1739175040997,-878.82324274,0.0001023,2]
[352572998,1739175041008,-897.17580452,0.0001023,2]
[352572999,1739175041019,-5919.26908368,0.0001023,2]
[352573000,1739175041030,-11121.07784501,0.0001023,2]
[352573001,1739175041045,-121894.94730797,0.00010231,2]
[352573002,1739175041056,-11384.76294506,0.00010231,2]
[352573003,1739175041066,-200.0,0.00010231,2]
[352573004,1739175041075,-9835.35591443,0.00010231,2]
[352573005,1739175041086,-71333.72693894,0.00010232,2]
[352573007,1739175041097,-1232.44317582,0.00010232,2]
[352573008,1739175041108,-2028.04359572,0.00010232,2]
[352573010,1739175041119,-5589.81094419,0.00010232,2]
[352573012,1739175041132,-200.0,0.00010233,2]
[352573014,1739175041142,-1731.40126875,0.00010234,2]
[352573016,1739175041152,-2559.72517202,0.00010235,2]
[352573019,1739175041163,-13290.25476713,0.00010235,2]
[352573021,1739175041174,-13290.25476713,0.00010235,2]
[352573022,1739175041184,-2028.04359572,0.00010235,2]
[352573025,1739175041194,-13290.25476713,0.00010235,2]
[352573027,1739175041205,-40666.34962168,0.00010237,2]
[352573029,1739175041216,-71333.72693894,0.00010237,2]
[352573030,1739175041226,-1731.40126875,0.00010237,2]
[352573033,1739175041236,-92185.51434518,0.00010238,2]
[352573035,1739175041247,-5579.90432424,0.00010238,2]
[352573037,1739175041258,-2138.39972669,0.00010238,2]
[352573039,1739175041268,-200.0,0.00010238,2]
[352573040,1739175041278,-145129.04679088,0.00010238,2]
[352573043,1739175041290,-514.64958404,0.00010239,2]
[352573045,1739175041302,-23777.90897965,0.00010239,2]
[352573047,1739175041312,-200.0,0.0001024,2]
[352573049,1739175041321,-2559.72517202,0.0001024,2]
[352573050,1739175041331,-200.0,0.00010241,2]
[352573053,1739175041340,-13290.25476713,0.00010241,2]
[352573055,1739175041351,-832.09143298,0.00010242,2]
[352573057,1739175041362,-4102.7295184,0.00010244,2]
[352573059,1739175041372,-2148.91944618,0.00010244,2]
[352573061,1739175041382,-2559.72517202,0.00010245,2]
[352573063,1739175041392,-1731.40126875,0.00010245,2]
[352573064,1739175041402,-5589.81094419,0.00010245,2]
[352573066,1739175041412,-2028.04359572,0.00010245,2]
[352573068,1739175041423,-500.0,0.00010246,2]
[352573070,1739175041432,-899.0,0.00010246,2]
[352573072,1739175041443,-832.09143298,0.00010246,2]
[352573074,1739175041452,-5579.90432424,0.00010246,2]
[352573076,1739175041464,-77951.86262335,0.00010247,2]
[352573078,1739175041474,-514.64958404,0.00010248,2]
[352573080,1739175041484,-5579.90432424,0.00010249,2]
[352573082,1739175041495,-145129.04679088,0.00010249,2]
[352573084,1739175041505,-804.18844734,0.00010249,2]
[352573086,1739175041515,-311.1193808,0.00010249,2]
[352573088,1739175041525,-40666.34962168,0.00010249,2]
[352573090,1739175041537,-11384.76294506,0.00010251,2]
[352573092,1739175041546,-23777.90897965,0.00010251,2]
[352573094,1739175041556,-5589.81094419,0.00010252,2]
[352573096,1739175041567,-2138.39972669,0.00010252,2]
[352573098,1739175041577,-3937.52151847,0.00010252,2]
[352573100,1739175041587,-897.17580452,0.00010253,2]
[352573102,1739175041597,-5919.26908368,0.00010253,2]
[352573104,1739175041607,-3937.52151847,0.00010253,2]
[352573106,1739175041618,-2674.89455741,0.00010253,2]
[352573108,1739175041628,-121894.94730797,0.00010253,2]
[352573110,1739175041639,-200.0,0.00010254,2]
[352573112,1739175041650,-2148.91944618,0.00010254,2]
[352573114,1739175041661,-14185.78145552,0.00010254,2]
[352573116,1739175041672,-200.0,0.00010254,2]
[352573118,1739175041681,-77951.86262335,0.00010254,2]
[352573120,1739175041691,-92185.51434518,0.00010254,2]
[352573122,1739175041701,-26425.75176665,0.00010255,2]
[352573124,1739175041711,-2148.91944618,0.00010255,2]
[352573126,1739175041721,-4809.19264129,0.00010255,2]
[352573128,1739175041731,-4102.7295184,0.00010256,2]
[352573130,1739175041741,-2148.91944618,0.00010257,2]
[352573132,1739175041751,-832.09143298,0.00010258,2]
[352573134,1739175041760,-1071.73460817,0.00010258,2]
[352573136,1739175041769,-2172.6078346,0.00010258,2]
[352573138,1739175041781,-40666.34962168,0.00010259,2]
[352573140,1739175041793,-11121.07784501,0.00010259,2]
[352573142,1739175041805,-842.23213553,0.0001026,2]
[352573143,1739175041814,-8506.42114865,0.0001026,2]
[352573146,1739175041826,-1232.44317582,0.00010262,2]
[352573148,1739175041836,-1071.73460817,0.00010262,2]
[352573150,1739175041847,-11121.07784501,0.00010263,2]
[352573152,1739175041858,-4809.19264129,0.00010263,2]
[352573154,1739175041870,-514.64958404,0.00010264,2]
[352573155,1739175041880,-14185.78145552,0.00010265,2]
[352573157,1739175041890,-25693.31245107,0.00010266,2]
[352573159,1739175041901,-5579.90432424,0.00010266,2]
[352573162,1739175041912,-2172.6078346,0.00010266,2]
[352573164,1739175041923,-92185.51434518,0.00010267,2]
[352573166,1739175041933,-77951.86262335,0.00010267,2]
[352573168,1739175041944,-2674.89455741,0.00010268,2]
[352573170,1739175041954,-200.0,0.00010268,2]
[352573172,1739175041964,-2138.39972669,0.00010268,2]
[352573173,1739175041974,-277097.59235337,0.00010269,2]
[352573175,1739175041985,-2674.89455741,0.0001027,2]
[352573178,1739175041998,-40666.34962168,0.0001027,2]
[352573180,1739175042008,-1232.44317582,0.00010271,2]
[352573182,1739175042019,-23777.90897965,0.00010271,2]
[352573184,1739175042031,-121894.94730797,0.00010271,2]
[352573185,1739175042043,-9835.35591443,0.00010271,2]
[352573188,1739175042054,-897.17580452,0.00010271,2]
[352573189,1739175042064,-5919.26908368,0.00010271,2]
[352573191,1739175042075,-11384.76294506,0.00010271,2]
[352573194,1739175042085,-2028.04359572,0.00010271,2]
[352573196,1739175042096,-200.0,0.00010271,2]
[352573197,1739175042107,-11121.07784501,0.00010272,2]
[352573199,1739175042117,-4102.7295184,0.00010272,2]
[352573201,1739175042127,-500.0,0.00010273,2]
[352573203,1739175042138,-899.0,0.00010273,2]
[352573205,1739175042148,-500.0,0.00010273,2]
[352573207,1739175042158,-317.24287914,0.00010273,2]
[352573210,1739175042169,-703.99,0.00010273,2]
[352573211,1739175042179,-500.0,0.00010273,2]
[352573213,1739175042189,-384.99548263,0.00010273,2]
[352573215,1739175042200,-500.0,0.00010273,2]
[352573217,1739175042211,-500.0,0.00010273,2]
[352573219,1739175042221,-500.0,0.00010273,2]
[352573221,1739175042232,-500.0,0.00010273,2]
[352573223,1739175042243,-500.0,0.00010273,2]
[352573225,1739175042254,-500.0,0.00010273,2]
[352573227,1739175042264,-500.0,0.00010273,2]
[352573229,1739175042273,-500.0,0.00010273,2]
[352573231,1739175042283,-500.0,0.00010273,2]
[352573234,1739175042296,-500.0,0.00010273,2]
[352573236,1739175042306,-500.0,0.00010273,2]
[352573238,1739175042315,-526.56,0.00010273,2]
[352573240,1739175042326,-500.0,0.00010273,2]
[352573242,1739175042337,-660.99,0.00010273,2]
[352573244,1739175042347,-500.0,0.00010273,2]
[352573246,1739175042357,-500.0,0.00010273,2]
[352573248,1739175042367,-150.45,0.00010273,2]
[352573265,1739175042530,-710.76,0.00010273,2]
[352573267,1739175042542,-500.0,0.00010273,2]
[352573270,1739175042552,-500.0,0.00010273,2]
[352573272,1739175042562,-724.76,0.00010273,2]
[352573275,1739175042572,-500.0,0.00010273,2]
[352573277,1739175042582,-2138.39972669,0.00010273,2]
[352573279,1739175042593,-804.18844734,0.00010274,2]
[352573281,1739175042603,-92185.51434518,0.00010274,2]
[352573283,1739175042614,-11384.76294506,0.00010274,2]
[352573285,1739175042625,-277097.59235337,0.00010275,2]
[352573287,1739175042634,-145129.04679088,0.00010275,2]
[352573289,1739175042645,-878.82324274,0.00010275,2]
[352573292,1739175042656,-1731.40126875,0.00010275,2]
[352573294,1739175042667,-26425.75176665,0.00010276,2]
[352573296,1739175042679,-3937.52151847,0.00010276,2]
[352573298,1739175042690,-200.0,0.00010277,2]
[352573300,1739175042702,-2172.6078346,0.00010278,2]
[352573302,1739175042715,-3937.52151847,0.00010279,2]
[352573304,1739175042727,-145129.04679088,0.00010279,2]
[352573307,1739175042737,-8506.42114865,0.00010279,2]
[352573309,1739175042749,-9835.35591443,0.00010279,2]
[352573311,1739175042759,-25693.31245107,0.0001028,2]
[352573312,1739175042771,-832.09143298,0.0001028,2]
[352573315,1739175042792,-23777.90897965,0.0001028,2]
[352573317,1739175042803,-200.0,0.0001028,2]
[352573319,1739175042814,-200.0,0.00010281,2]
[352573321,1739175042825,-311.1193808,0.00010281,2]
[352573323,1739175042838,-514.64958404,0.00010281,2]
[352573325,1739175042849,-878.82324274,0.00010282,2]
[352573327,1739175042859,-200.0,0.00010282,2]
[352573329,1739175042869,-878.82324274,0.00010283,2]
[352573330,1739175042879,-200.0,0.00010283,2]
[352573332,1739175042888,-5919.26908368,0.00010284,2]
[352573334,1739175042898,-26425.75176665,0.00010284,2]
[352573336,1739175042908,-71333.72693894,0.00010285,2]
[352573338,1739175042919,-77951.86262335,0.00010286,2]
[352573340,1739175042929,-71333.72693894,0.00010286,2]
[352573342,1739175042939,-200.0,0.00010286,2]
[352573345,1739175042950,-2559.72517202,0.00010286,2]
[352573347,1739175042960,-121894.94730797,0.00010287,2]
[352573349,1739175042970,-200.0,0.00010287,2]
[352573351,1739175042980,-804.18844734,0.00010288,2]
[352573353,1739175042991,-842.23213553,0.0001029,2]
[352573355,1739175043000,-1232.44317582,0.00010291,2]
[352573357,1739175043013,-1071.73460817,0.00010291,2]
[352573359,1739175043023,-200.0,0.00010292,2]
[352573361,1739175043033,-842.23213553,0.00010292,2]
[352573362,1739175043047,-14185.78145552,0.00010292,2]
[352573365,1739175043057,-200.0,0.00010293,2]
[352573366,1739175043067,-804.18844734,0.00010293,2]
[352573369,1739175043078,-311.1193808,0.00010293,2]
[352573371,1739175043088,-200.0,0.00010293,2]
[352573373,1739175043098,-25693.31245107,0.00010294,2]
[352573375,1739175043107,-5589.81094419,0.00010295,2]
[352573376,1739175043116,-2172.6078346,0.00010295,2]
[352573378,1739175043126,-14185.78145552,0.00010295,2]
[352573381,1739175043137,-4102.7295184,0.00010295,2]
[352573383,1739175043147,-897.17580452,0.00010295,2]
[352573385,1739175043157,-277097.59235337,0.00010297,2]
[352573387,1739175043167,-8506.42114865,0.00010297,2]
[352573389,1739175043177,-25693.31245107,0.00010297,2]
[352573391,1739175043187,-277097.59235337,0.00010297,2]
[352573393,1739175043196,-2674.89455741,0.00010297,2]
[352573395,1739175043206,-4809.19264129,0.00010297,2]
[352573397,1739175043215,-200.0,0.00010297,2]
[352573399,1739175043224,-8506.42114865,0.00010297,2]
[352573401,1739175043234,-311.1193808,0.00010298,2]
[352573402,1739175043244,-26425.75176665,0.00010298,2]
[352573404,1739175043253,-1071.73460817,0.00010299,2]
[352573406,1739175043263,-842.23213553,0.000103,2]
[352573408,1739175043273,-500.0,0.000103,2]
[352573410,1739175043283,-899.0,0.000103,2]
[352573412,1739175043295,-301.42,0.00010301,2]
[352573414,1739175043305,-277.02,0.00010325,2]
[352573416,1739175043314,-669.61366417,0.00010328,2]
[352573418,1739175043324,-899.0,0.00010328,2]
[352573420,1739175043333,-899.0,0.00010355,2]
[352573422,1739175043343,-899.0,0.00010383,2]
[352573424,1739175043353,-899.0,0.0001041,2]
[352573426,1739175043362,-500.0,0.0001041,2]
[352573428,1739175043372,-703.99,0.0001041,2]
[352573430,1739175043381,-500.0,0.0001041,2]
[352573432,1739175043390,-608.32,0.0001041,2]
[352573434,1739175043399,-500.0,0.0001041,2]
[352573436,1739175043408,-500.0,0.0001041,2]
[352573439,1739175043418,-500.0,0.0001041,2]
[352573441,1739175043428,-321.47388397,0.0001041,2]
[352573443,1739175043438,-500.0,0.0001041,2]
[352573445,1739175043448,-500.0,0.0001041,2]
[352573446,1739175043458,-500.0,0.0001041,2]
[352573448,1739175043467,-500.0,0.0001041,2]
[352573451,1739175043477,-500.0,0.0001041,2]
[352573452,1739175043487,-500.0,0.0001041,2]
[352573454,1739175043497,-500.0,0.0001041,2]
[352573457,1739175043507,-660.99,0.0001041,2]
[352573459,1739175043516,-370.04,0.0001041,2]
[352573461,1739175043527,-500.0,0.0001041,2]
[352573463,1739175043538,-710.76,0.0001041,2]
[352573465,1739175043547,-500.0,0.0001041,2]
[352573467,1739175043557,-500.0,0.0001041,2]
[352573469,1739175043566,-724.76,0.0001041,2]
[352573471,1739175043575,-500.0,0.0001041,2]
[352573473,1739175043586,-1189.56,0.00010417,2]